bitfinex-derivatives/quotes_SOLF0:USTF0_20240918
["timestamp","ask_amount","ask_price","bid_price","bid_amount"]
[1726638881050,129.90153452,131.22,131.18,9.39]
[1726638881251,139.29153452,131.22,131.18,9.39]
[1726638882258,3.811,131.2,131.18,9.39]
[1726638883263,3.811,131.19,131.18,9.39]
[1726638884556,3.811,131.19,131.17,9.39]
[1726638902680,139.29153452,131.22,131.14,3.8123]
[1726638902882,139.29153452,131.22,131.16,9.39]
[1726638904294,3.8112,131.19,131.17,9.39]
[1726638906691,3.8108,131.2,131.18,9.39]
[1726638907390,3.81,131.23,131.19,9.39]
[1726638907695,3.81,131.23,131.22,9.39]
[1726638908191,3.8102,131.22,131.21,9.39]
[1726638908890,1.4685,131.26,131.14,12.2158144]
[1726638909096,9.39,131.22,131.17,9.39]
[1726638909887,9.39,131.22,131.13,1.4199]
[1726638910092,9.39,131.21,131.16,9.39]
[1726638910394,3.8114,131.18,131.16,9.39]
[1726638914194,3.8114,131.18,131.17,9.39]
[1726638916699,3.8112,131.19,131.17,9.39]
[1726638918302,3.8113,131.18,131.17,9.39]
[1726638919605,3.8113,131.18,131.15,3.812]
[1726638919799,3.8116,131.17,131.14,3.8124]
[1726638920097,3.8116,131.17,131.15,9.39]
[1726638927410,3.8116,131.17,131.16,9.39]
[1726638927904,3.8115,131.18,131.16,9.39]
[1726638930600,3.8112,131.19,131.17,9.39]
[1726638933300,3.8113,131.18,131.17,9.39]
[1726638933605,3.8113,131.18,131.16,9.39]
[1726638936018,3.8113,131.18,131.14,3.8123]
[1726638936316,3.8116,131.17,131.15,9.39]
[1726638938409,3.8116,131.17,131.16,6.48794467]
[1726638938803,3.8116,131.17,131.15,9.39]
[1726638940509,3.8114,131.18,131.16,9.39]
[1726638946412,3.8114,131.18,131.15,9.39]
[1726638947711,9.39,131.19,131.14,9.39]
[1726638948716,3.8118,131.17,131.14,9.39]
[1726638953322,3.8118,131.17,131.15,6.48768485]
[1726638953619,3.8118,131.17,131.14,9.39]
[1726638953812,3.8118,131.17,131.15,6.48771469]
[1726638954023,3.8118,131.17,131.14,9.39]
[1726638954318,3.8118,131.17,131.15,6.48784714]
[1726638954622,3.8118,131.17,131.14,9.39]
[1726638954824,3.8118,131.17,131.15,6.48790405]
[1726638955021,3.8118,131.17,131.14,9.39]
[1726638955226,3.8118,131.17,131.15,6.48780871]
[1726638955421,3.8118,131.17,131.14,9.39]
[1726638955737,3.8118,131.17,131.15,6.48780871]
[1726638955929,3.8118,131.17,131.14,9.39]
[1726638956124,3.8118,131.17,131.15,6.48796459]
[1726638956330,3.8118,131.17,131.14,9.39]
[1726638956529,3.8118,131.17,131.15,6.48908861]
[1726638956731,3.8118,131.17,131.14,9.39]
[1726638956928,3.8118,131.17,131.15,6.48909278]
[1726638957230,3.8118,131.17,131.14,9.39]
[1726638957428,3.8118,131.17,131.15,6.48909694]
[1726638957624,3.8118,131.17,131.14,9.39]
[1726638957825,3.8118,131.17,131.15,6.48927854]
[1726638958034,9.39,131.2,131.16,9.39]
[1726638959533,9.39,131.21,131.16,9.39]
[1726638959929,3.8112,131.19,131.16,13.2018]
[1726638960534,143.72870755,131.25,131.18,9.39]
[1726638960734,9.39,131.23,131.19,9.39]
[1726638961038,3.8104,131.22,131.19,9.39]
[1726638961437,3.8104,131.22,131.2,9.39]
[1726638961633,3.81,131.23,131.21,9.39]
[1726638963546,3.81,131.23,131.2,13.2007]
[1726638966245,3.8102,131.22,131.2,9.39]
[1726638966440,3.8102,131.22,131.13,1.4199]
[1726638966441,3.8102,131.22,131.19,9.39]
[1726638968748,3.8102,131.22,131.2,9.39]
[1726638975245,3.8102,131.22,131.19,3.811]
[1726638975246,3.8105,131.21,131.19,9.39]
[1726638977258,3.8103,131.22,131.2,9.39]
[1726638983658,3.8103,131.22,131.19,9.39]
[1726638985351,3.8103,131.22,131.2,9.39]
[1726638996768,3.8103,131.22,131.21,9.39]
[1726638998271,3.8103,131.22,131.2,9.39]
[1726638998571,3.81,131.23,131.2,13.2006]
[1726638998770,3.81,131.23,131.21,9.39]
[1726639004672,3.8102,131.22,131.19,3.8109]
[1726639004869,3.8102,131.22,131.2,9.39]
[1726639006072,3.8102,131.22,131.21,9.39]
[1726639006273,1.4685,131.26,131.21,9.39]
[1726639006575,1.4685,131.26,131.22,9.39]
[1726639006576,10.8585,131.26,131.22,9.39]
[1726639007771,3.81,131.23,131.22,9.39]
[1726639011174,3.81,131.23,131.21,9.39]
[1726639012480,3.8102,131.22,131.21,9.39]
[1726639013577,3.8102,131.22,131.2,9.39]
[1726639015581,3.8102,131.22,131.2,9.39]
[1726639022190,3.8102,131.22,131.21,9.39]
[1726639033111,3.8104,131.21,131.18,3.8112]
[1726639033404,9.39,131.23,131.19,15.87833285]
[1726639033603,3.8112,131.19,131.16,1.4424]
[1726639033804,3.8112,131.19,131.17,15.882442]
[1726639034102,3.8112,131.19,131.18,6.492442]
[1726639034311,3.8112,131.19,131.17,9.39]
[1726639034902,3.8113,131.18,131.17,9.39]
[1726639035103,3.8113,131.18,131.17,15.88138529]
[1726639035500,3.8113,131.18,131.17,9.39]
[1726639035704,3.8113,131.18,131.17,15.88138529]
[1726639038908,3.8113,131.18,131.17,15.88222208]
[1726639039316,3.8113,131.18,131.17,9.39]
[1726639039614,3.8113,131.18,131.17,15.88222208]
[1726639042223,3.8113,131.18,131.17,9.39]
[1726639042422,3.8113,131.18,131.17,15.88222208]
[1726639042611,3.8113,131.18,131.17,9.39]
[1726639042810,3.8113,131.18,131.17,15.88220061]
[1726639044317,3.8113,131.18,131.17,9.39]
[1726639044823,3.8113,131.18,131.17,15.88025762]
[1726639045322,3.8113,131.18,131.17,9.39]
[1726639061030,3.8112,131.19,131.17,9.39]
[1726639061230,3.8112,131.19,131.18,9.39]
[1726639061430,9.39,131.22,131.18,9.39]
[1726639061634,3.8109,131.2,131.18,9.39]
[1726639072235,3.8109,131.2,131.17,13.2016]
[1726639072635,3.8112,131.19,131.17,9.39]
[1726639072938,9.39,131.22,131.17,9.39]
[1726639073338,3.8109,131.2,131.17,13.2016]
[1726639077637,3.8109,131.2,131.17,9.39]
[1726639080045,3.8109,131.2,131.18,9.39]
[1726639080246,3.8109,131.2,131.15,111.59931488]
[1726639080247,3.811,131.19,131.15,111.59931488]
[1726639080544,3.811,131.19,131.17,9.39]
[1726639087356,3.8113,131.18,131.17,9.39]
[1726639092261,3.8113,131.18,131.17,15.87567124]
[1726639094964,3.8111,131.19,131.17,15.87567124]
[1726639095161,3.8111,131.19,131.17,9.39]
[1726639095870,3.8111,131.19,131.16,9.39]
[1726639096068,3.8111,131.19,131.17,6.49089688]
[1726639096363,3.8111,131.19,131.15,3.812]
[1726639096560,9.39,131.18,131.16,6.49101781]
[1726639096764,9.39,131.17,131.12,10.8135]
[1726639096958,3.8122,131.16,131.13,6.49496519]
[1726639097163,3.8122,131.16,131.14,6.49496519]
[1726639097471,3.8122,131.16,131.12,14.6266]
[1726639097662,3.8122,131.15,131.13,6.49558313]
[1726639097863,3.8122,131.15,131.14,6.49597552]
[1726639098368,3.812,131.16,131.13,9.39]
[1726639098573,3.812,131.16,131.14,6.49567005]
[1726639098865,9.39,131.15,131.08,9.39]
[1726639099063,9.39,131.14,131.09,6.5000923]
[1726639099264,9.39,131.11,131.07,12.3581]
[1726639099465,9.39,131.11,131.08,6.50243945]
[1726639099466,3.8138,131.1,131.08,6.50243945]
[1726639099662,3.8138,131.1,131.07,10.8406]
[1726639099864,3.8138,131.1,131.08,6.50309265]
[1726639100163,3.8138,131.1,131.07,10.8406]
[1726639101764,3.8132,131.12,131.09,9.39]
[1726639101969,257.09160443,131.18,131.1,9.39]
[1726639102167,9.39,131.15,131.1,9.39]
[1726639103273,3.813,131.13,131.1,9.39]
[1726639103475,9.39,131.14,131.1,9.39]
[1726639103869,3.8131,131.12,131.1,9.39]
[1726639104373,3.8131,131.12,131.09,9.39]
[1726639105368,3.8131,131.12,131.1,9.39]
[1726639113976,9.39,131.11,131.04,9.04102625]
[1726639114178,9.39,131.07,131.03,9.39]
[1726639114475,3.8151,131.06,131.03,9.39]
[1726639114879,9.39,131.07,131.01,3.90558513]
[1726639115078,9.39,131.07,131.02,9.39]
[1726639115780,3.8155,131.04,131.02,9.39]
[1726639116975,3.8152,131.05,131.02,9.39]
[1726639117872,3.8152,131.05,131.03,9.39]
[1726639121886,3.8154,131.04,131.03,9.39]
[1726639123985,1.4518,131.1,131.03,9.39]
[1726639123986,9.39,131.09,131.03,9.39]
[1726639124185,9.39,131.09,131.05,9.39]
[1726639125198,3.8147,131.07,131.04,9.39]
[1726639126894,3.8144,131.08,131.05,9.39]
[1726639127096,2.9673,131.11,131.06,9.39]
[1726639127291,9.39,131.1,131.06,9.39]
[1726639128295,3.8142,131.09,131.06,9.39]
[1726639128493,9.39,131.09,131.06,9.39]
[1726639128794,9.39,131.09,131.05,9.39]
[1726639128795,3.8144,131.08,131.05,9.39]
[1726639129104,9.39,131.09,131.05,9.39]
[1726639129795,3.8146,131.07,131.05,9.39]
[1726639129994,3.8146,131.07,131.04,3.8152]
[1726639130192,3.8146,131.07,131.04,13.2052]
[1726639130391,3.8146,131.07,131.04,9.39]
[1726639134000,3.8146,131.07,131.04,13.2054]
[1726639137009,3.8146,131.07,131.04,3.8154]
[1726639137203,3.8146,131.07,131.05,9.39]
[1726639137403,3.8148,131.06,131.04,9.39]
[1726639138802,3.8146,131.07,131.04,9.39]
[1726639139503,3.8146,131.07,131.05,9.39]
[1726639144410,3.8143,131.08,131.05,3.8151]
[1726639144604,3.8143,131.08,131.06,9.39]
[1726639145505,3.8141,131.09,131.06,9.39]
[1726639148910,9.39,131.1,131.06,9.39]
[1726639149113,3.8145,131.07,131.04,13.2053]
[1726639152712,3.8145,131.07,131.05,9.39]
[1726639153107,9.39,131.08,131.03,1.5032]
[1726639153308,9.39,131.07,131.02,9.39]
[1726639153511,9.39,131.06,131.02,9.39]
[1726639153713,3.8156,131.04,131.02,9.39]
[1726639161634,3.8156,131.04,131.01,16.96517083]
[1726639163629,3.8156,131.04,131.01,7.57517083]
[1726639163832,9.39,131.06,131.01,3.75897083]
[1726639164131,9.39,131.06,131.0,9.39]
[1726639164335,3.8154,131.04,131.01,3.72575965]
[1726639168541,3.8154,131.04,131.01,7.54195965]
[1726639196953,3.8154,131.04,131.02,6.51826018]
[1726639197253,3.8154,131.04,131.01,7.54195965]
[1726639197450,3.8154,131.04,131.02,6.51886641]
[1726639197650,3.8154,131.04,131.01,7.54195965]
[1726639197855,3.8154,131.04,131.02,6.51860688]
[1726639198050,3.8154,131.04,131.01,7.54195965]
[1726639198252,3.8154,131.04,131.02,6.5186082]
[1726639198447,3.8154,131.04,131.01,7.54195965]
[1726639198647,3.8154,131.04,131.02,6.5186241]
[1726639198847,3.8154,131.04,131.01,7.54195965]
[1726639199054,3.8154,131.04,131.02,6.51856955]
[1726639199251,3.8154,131.04,131.01,7.54195965]
[1726639199453,3.8154,131.04,131.02,6.51873902]
[1726639199650,3.8154,131.04,131.01,7.54195965]
[1726639199852,3.8154,131.04,131.02,6.51835081]
[1726639200047,3.8154,131.04,131.01,7.54195965]
[1726639200257,3.8154,131.04,131.02,6.51850121]
[1726639200456,3.8154,131.04,131.01,7.54195965]
[1726639200657,3.8154,131.04,131.02,6.51905644]
[1726639200860,3.8154,131.04,131.01,7.54195965]
[1726639201159,3.8154,131.04,131.02,6.51893748]
[1726639201348,3.8154,131.04,131.01,7.54195965]
[1726639201553,3.8154,131.04,131.02,6.51912863]
[1726639201756,3.8154,131.04,131.01,7.54195965]
[1726639201960,3.8154,131.04,131.02,6.51823054]
[1726639202151,3.8154,131.04,131.01,7.54195965]
[1726639202352,3.8154,131.04,131.02,6.51811337]
[1726639202553,3.8154,131.04,131.01,7.54195965]
[1726639202756,3.8154,131.04,131.02,6.51702944]
[1726639203059,3.8154,131.04,131.01,7.54195965]
[1726639203260,3.8154,131.04,131.02,6.51682274]
[1726639203462,3.8154,131.04,131.01,7.54195965]
[1726639203863,3.8154,131.04,131.02,6.51414911]
[1726639204158,3.8154,131.04,131.01,7.54195965]
[1726639204354,9.39,131.02,130.91,19.56381708]
[1726639204555,2.9468,131.11,130.92,17.92152768]
[1726639204556,9.39,130.98,130.92,17.92152768]
[1726639204764,9.39,130.98,130.94,3.8181]
[1726639204954,9.39,130.98,130.95,10.38485619]
[1726639205154,9.39,130.98,130.96,6.51802663]
[1726639205354,9.39,130.98,130.95,3.86682956]
[1726639205951,9.39,130.98,130.94,3.8181]
[1726639205952,9.39,130.97,130.94,3.8181]
[1726639206561,13.2075,130.97,130.93,3.8185]
[1726639207256,9.39,130.98,130.94,13.2081]
[1726639207851,9.39,130.98,130.95,3.8179]
[1726639208964,3.8167,131.0,130.96,3.8177]
[1726639209161,13.2067,131.0,130.96,3.8177]
[1726639212266,13.2069,130.99,130.95,17.06559935]
[1726639212463,13.2069,130.99,130.95,7.67559935]
[1726639212662,9.39,130.99,130.95,3.85769935]
[1726639212860,9.39,130.98,130.94,9.39]
[1726639213767,13.2072,130.98,130.94,13.2082]
[1726639213961,9.39,130.96,130.92,4.3225]
[1726639214168,9.39,130.96,130.92,2.8871]
[1726639214364,9.39,130.96,130.89,8.5653899]
[1726639214571,13.2079,130.96,130.91,13.209]
[1726639214760,13.2079,130.96,130.92,10.3931861]
[1726639214967,9.39,130.95,130.91,3.8191]
[1726639215467,13.208,130.95,130.91,7.69704072]
[1726639215967,13.208,130.95,130.91,3.8191]
[1726639216760,3.818,130.95,130.91,3.8191]
[1726639217065,13.2078,130.96,130.91,13.2091]
[1726639217267,9.39,130.96,130.91,3.8191]
[1726639217566,3.818,130.95,130.91,13.2091]
[1726639219867,13.2078,130.96,130.91,3.8191]
[1726639220067,13.2078,130.96,130.91,13.2091]
[1726639220369,3.8178,130.96,130.92,3.8189]
[1726639220678,3.8178,130.96,130.9,3.82784366]
[1726639220679,9.39,130.98,130.93,9.39]
[1726639220873,2.8086,131.02,130.94,9.39]
[1726639221166,2.8086,131.02,130.95,9.39]
[1726639221167,3.817,130.99,130.95,9.39]
[1726639221578,3.817,130.99,130.95,13.208]
[1726639221968,9.39,131.0,130.95,9.39]
[1726639223276,3.8167,131.0,130.96,3.8176]
[1726639223478,9.39,131.01,130.98,9.39]
[1726639224476,9.39,131.02,130.98,9.39]
[1726639224865,9.39,131.02,130.99,3.8167]
[1726639225066,9.39,131.02,130.99,13.2067]
[1726639225680,3.8159,131.03,130.99,13.2067]
[1726639227072,13.2055,131.04,131.0,3.8165]
[1726639227302,13.2055,131.04,131.0,13.2065]
[1726639227303,3.8155,131.04,131.0,13.2065]
[1726639227575,3.8155,131.04,131.0,9.39]
[1726639228179,1.4302,131.06,131.01,9.39]
[1726639228480,10.8202,131.06,131.01,9.39]
[1726639228683,3.8153,131.05,131.01,13.2062]
[1726639231778,13.2053,131.05,131.01,13.2062]
[1726639232276,3.8154,131.04,131.01,13.2062]
[1726639234681,3.8154,131.04,131.01,9.39]
[1726639235483,9.39,131.05,131.0,13.2065]
[1726639236382,3.8157,131.03,131.0,13.2065]
[1726639236777,9.39,131.05,131.0,13.2065]
[1726639237180,3.8155,131.04,131.0,13.2065]
[1726639237578,9.39,131.05,131.0,13.2065]
[1726639238882,3.8157,131.03,131.0,13.2065]
[1726639240475,3.8155,131.04,131.01,9.39]
[1726639241390,9.39,131.05,131.02,13.2059]
[1726639241391,3.8152,131.05,131.02,13.2059]
[1726639242783,3.8152,131.05,131.02,9.39]
[1726639242985,3.8155,131.04,131.01,13.2061]
[1726639243589,3.8157,131.03,131.01,9.39]
[1726639244185,3.8155,131.04,131.01,9.39]
[1726639244884,3.8157,131.03,131.01,9.39]
[1726639245390,3.8157,131.03,131.0,9.39]
[1726639245884,13.2061,131.02,130.98,5.2856]
[1726639246079,13.2061,131.02,130.98,14.6756]
[1726639248588,3.8161,131.02,130.98,14.6756]
[1726639249393,9.39,131.03,130.98,14.6756]
[1726639249394,3.8158,131.03,131.0,9.39]
[1726639257895,3.816,131.02,130.98,14.6756]
[1726639258096,9.39,131.02,130.98,1.4686]
[1726639258394,9.39,131.02,130.97,15.96837944]
[1726639258596,3.8164,131.01,130.97,19.78567944]
[1726639258893,9.39,131.02,130.97,18.37667944]
[1726639259091,3.8165,131.01,130.97,18.37667944]
[1726639259706,3.8161,131.02,130.98,13.2071]
[1726639260605,3.8161,131.02,130.99,3.8168]
[1726639261109,3.8158,131.03,131.0,9.39]
[1726639262312,3.8155,131.04,131.01,9.39]
[1726639263203,3.8155,131.04,131.01,13.2062]
[1726639264308,10.8202,131.06,131.02,9.39]
[1726639264509,9.39,131.06,131.02,9.39]
[1726639264905,9.39,131.08,131.03,9.39]
[1726639265307,3.815,131.06,131.03,13.2056]
[1726639269502,1.5121,131.11,131.04,9.39]
[1726639269707,1.5121,131.11,131.05,9.39]
[1726639269708,9.39,131.1,131.05,9.39]
[1726639270107,3.8142,131.09,131.06,3.8148]
[1726639271710,13.2038,131.1,131.06,3.8148]
[1726639272511,3.8138,131.1,131.07,3.8145]
[1726639275712,3.8135,131.11,131.07,13.2045]
[1726639276420,3.8135,131.11,131.08,3.8141]
[1726639278716,3.8135,131.11,131.08,13.2041]
[1726639284728,3.8137,131.1,131.08,13.2041]
[1726639286024,3.8137,131.1,131.08,9.39]
[1726639286324,9.39,131.09,131.04,13.17464004]
[1726639286628,9.39,131.09,131.04,9.39]
[1726639286816,3.8146,131.07,131.04,13.2051]
[1726639289313,3.8143,131.08,131.04,13.2051]
[1726639289518,3.8143,131.08,131.05,9.39]
[1726639289717,3.8142,131.09,131.06,9.39]
[1726639292118,3.8144,131.08,131.05,9.39]
[1726639292322,9.39,131.08,131.04,3.8153]
[1726639292624,3.8148,131.06,131.04,9.39]
[1726639295427,3.8147,131.07,131.04,9.39]
[1726639295626,3.8147,131.07,131.05,9.39]
[1726639297330,9.39,131.09,131.06,9.39]
[1726639298231,3.8145,131.08,131.06,9.39]
[1726639301322,3.8145,131.07,131.06,9.39]
[1726639305429,3.8143,131.08,131.06,9.39]
[1726639306736,1.3792,131.13,131.06,9.39]
[1726639306936,10.7692,131.13,131.09,9.39]
[1726639308431,9.39,131.14,131.1,9.39]
[1726639309138,3.8132,131.12,131.1,9.39]
[1726639310432,3.8134,131.11,131.1,9.39]
[1726639311842,3.8131,131.12,131.1,9.39]
[1726639317742,9.39,131.12,131.07,3.8144]
[1726639317937,9.39,131.12,131.08,9.39]
[1726639318544,3.8138,131.1,131.08,9.39]
[1726639320546,3.8134,131.11,131.09,9.39]
[1726639320743,3.8134,131.11,131.1,9.39]
[1726639321245,9.39,131.14,131.1,9.39]
[1726639321246,9.39,131.15,131.1,9.39]
[1726639321543,9.39,131.15,131.11,9.39]
[1726639322847,3.8131,131.12,131.11,9.39]
[1726639323350,3.8131,131.12,131.1,9.39]
[1726639323839,3.8131,131.12,131.11,9.39]
[1726639326341,3.8131,131.12,131.1,9.39]
[1726639326742,3.8134,131.11,131.09,9.39]
[1726639326946,9.39,131.12,131.07,9.39]
[1726639327340,9.39,131.08,131.02,9.39]
[1726639327538,9.39,131.07,131.02,9.39]
[1726639327750,3.815,131.06,131.03,9.39]
[1726639328850,3.815,131.06,131.03,13.2056]
[1726639329044,3.815,131.06,131.04,9.39]
[1726639329449,3.8146,131.07,131.04,13.2052]
[1726639329840,1.4334,131.11,131.06,9.39]
[1726639330047,10.8234,131.11,131.06,9.39]
[1726639330352,3.8144,131.08,131.06,9.39]
[1726639330546,9.39,131.1,131.05,9.39]
[1726639330757,3.8148,131.07,131.05,9.39]
[1726639331751,3.8148,131.06,131.04,9.39]
[1726639332348,9.39,131.08,131.04,9.39]
[1726639332556,9.39,131.09,131.04,13.2052]
[1726639332747,9.39,131.09,131.04,9.39]
[1726639333452,3.8147,131.07,131.04,9.39]
[1726639334046,3.8147,131.07,131.05,9.39]
[1726639336953,3.8148,131.06,131.05,9.39]
[1726639337254,9.39,131.09,131.05,9.39]
[1726639338056,3.8143,131.08,131.05,9.39]
[1726639338257,9.39,131.09,131.05,9.39]
[1726639339052,3.8147,131.07,131.05,9.39]
[1726639343861,76.34285095,131.99,131.06,9.39]
[1726639343862,3.8142,131.08,131.06,9.39]
[1726639344554,3.8142,131.08,131.07,9.39]
[1726639345261,3.814,131.09,131.07,9.39]
[1726639345556,9.39,131.12,131.08,9.39]
[1726639346759,3.8137,131.1,131.08,9.39]
[1726639352058,1.75,131.09,131.08,9.39]
[1726639354870,5.5639,131.09,131.07,9.39]
[1726639358469,1.75,131.09,131.07,9.39]
[1726639358780,0.41,131.08,131.07,9.39]
[1726639359877,0.41,131.08,131.07,13.2045]
[1726639365482,0.41,131.08,131.07,19.71184251]
[1726639366077,1.75,131.09,131.07,15.89734251]
[1726639366276,128.57448621,131.33,131.04,3.81937552]
[1726639366277,3.813,131.13,131.08,9.39]
[1726639366480,3.813,131.13,131.12,9.39]
[1726639366680,137.9610024,131.17,131.12,9.39]
[1726639366882,137.9610024,131.17,131.0,7.6331]
[1726639366883,0.92,131.16,131.13,9.39]
[1726639367687,0.92,131.16,131.14,9.39]
[1726639367991,0.92,131.16,131.15,9.39]
[1726639368290,4.7321,131.16,131.15,9.39]
[1726639368584,3.8121,131.16,131.15,9.39]
[1726639370385,3.8122,131.15,131.14,9.39]
[1726639371882,0.92,131.17,131.14,9.39]
[1726639372076,0.92,131.17,131.15,9.39]
[1726639372480,4.7316,131.17,131.15,9.39]
[1726639374579,3.8119,131.16,131.14,9.39]
[1726639377495,4.7317,131.17,131.15,9.39]
[1726639377892,0.92,131.17,131.15,9.39]
[1726639378185,0.92,131.17,131.16,9.39]
[1726639380486,4.7316,131.17,131.15,9.39]
[1726639380880,3.8122,131.16,131.14,9.39]
[1726639381084,3.8122,131.16,131.11,3.76430642]
[1726639381085,10.31,131.17,131.13,9.39]
[1726639382091,0.92,131.17,131.13,9.39]
[1726639382288,3.8121,131.16,131.13,9.39]
[1726639383090,0.92,131.17,131.13,13.2026]
[1726639384285,0.92,131.17,131.13,9.39]
[1726639384286,3.8121,131.16,131.13,9.39]
[1726639385197,3.8125,131.14,131.12,9.39]
[1726639385907,0.92,131.17,131.13,9.39]
[1726639386200,0.92,131.17,131.15,9.39]
[1726639386592,3.8119,131.16,131.15,9.39]
[1726639387796,0.92,131.17,131.1,3.77022104]
[1726639387797,3.8122,131.15,131.14,9.39]
[1726639387995,0.92,131.17,131.14,9.39]
[1726639388492,3.8122,131.15,131.12,9.39]
[1726639388696,10.31,131.17,131.12,9.39]
[1726639390898,3.8124,131.15,131.12,9.39]
[1726639391099,3.8124,131.15,131.12,13.203]
[1726639391299,3.8124,131.15,131.12,9.39]
[1726639391507,10.31,131.17,131.12,9.39]
[1726639391996,3.8124,131.15,131.12,9.39]
[1726639392498,3.8126,131.14,131.12,9.39]
[1726639393297,3.8122,131.15,131.13,9.39]
[1726639394797,0.92,131.17,131.14,9.39]
[1726639394798,3.812,131.16,131.14,9.39]
[1726639396595,0.92,131.17,131.14,9.39]
[1726639396795,4.7316,131.17,131.15,9.39]
[1726639397000,0.92,131.17,131.15,9.39]
[1726639398005,3.8119,131.16,131.14,9.39]
[1726639400003,0.92,131.15,131.14,9.39]
[1726639401209,0.92,131.15,131.13,3.8127]
[1726639401210,0.92,131.15,131.12,9.39]
[1726639402901,3.8125,131.14,131.12,9.39]
[1726639406114,0.92,131.15,131.13,9.39]
[1726639406312,0.92,131.15,131.14,9.39]
[1726639406910,0.92,131.15,131.07,6.49460108]
[1726639407110,0.92,131.15,131.08,6.49460108]
[1726639407311,10.31,131.15,131.11,9.39]
[1726639407523,3.8125,131.14,131.11,9.39]
[1726639408121,10.31,131.15,131.11,9.39]
[1726639408122,3.8128,131.13,131.11,9.39]
[1726639408908,9.39,131.12,131.05,7.05728664]
[1726639409105,9.39,131.12,131.07,9.39]
[1726639409411,3.8139,131.1,131.07,9.39]
[1726639409713,9.39,131.11,131.07,9.39]
[1726639410913,13.2034,131.11,131.07,9.39]
[1726639412322,3.8136,131.1,131.07,9.39]
[1726639413620,13.2036,131.1,131.06,9.39]
[1726639413916,9.39,131.1,131.04,3.8153]
[1726639414112,9.39,131.08,130.99,12.23908324]
[1726639414315,9.39,131.07,131.03,9.39]
[1726639414823,9.39,131.06,131.02,9.39]
[1726639415008,13.2051,131.06,131.02,9.39]
[1726639415218,3.8151,131.06,131.02,9.39]
[1726639416416,3.8151,131.06,131.02,13.2059]
[1726639416612,3.8151,131.06,131.03,9.39]
[1726639418922,0.92,131.05,131.03,9.39]
[1726639420920,0.92,131.05,131.03,13.2056]
[1726639421116,0.92,131.05,131.04,9.39]
[1726639422117,0.92,131.05,131.04,13.2054]
[1726639431927,0.92,131.05,131.03,9.39]
[1726639432619,4.7352,131.05,131.02,9.39]
[1726639432923,9.39,131.04,131.0,9.39]
[1726639433119,13.2056,131.04,131.0,13.2065]
[1726639433327,9.39,131.04,131.0,13.2065]
[1726639434027,9.39,131.04,131.0,9.39]
[1726639434427,3.8157,131.03,131.0,9.39]
[1726639435332,3.816,131.02,131.0,9.39]
[1726639436426,3.8158,131.03,131.01,9.39]
[1726639436626,0.92,131.02,131.01,9.39]